bitfinex-derivatives/quotes_SOLF0:USTF0_20250228
["timestamp","ask_amount","ask_price","bid_price","bid_amount"]
[1740773964417,12.94,145.44,145.3,3.6921]
[1740773964610,12.94,145.44,145.31,12.94]
[1740773964816,6.8783,145.41,145.31,12.94]
[1740773965014,12.94,145.44,145.32,6.8824]
[1740773965319,6.8802,145.37,145.36,0.04597778]
[1740773965520,6.8802,145.37,145.3,1.8037]
[1740773965715,0.04873684,145.38,145.3,1.8037]
[1740773965912,12.96,145.39,145.3,1.8037]
[1740773966115,12.96,145.39,145.28,12.96]
[1740773966317,12.96,145.39,145.22,1.8331]
[1740773966318,1.8637,145.38,145.23,1.8037]
[1740773966619,6.883,145.31,145.23,1.8037]
[1740773967029,12.96,145.32,145.23,1.8037]
[1740773967319,0.04453608,145.28,145.26,0.04640181]
[1740773968115,6.92903608,145.28,145.26,0.04640181]
[1740773968315,0.04453608,145.28,145.26,0.04640181]
[1740773968717,6.8849,145.27,145.26,0.04640181]
[1740773968915,19.8449,145.27,145.26,0.04640181]
[1740773970529,16.4,145.27,145.19,1.8834]
[1740773970826,12.96,145.27,145.19,1.8834]
[1740773971021,6.8855,145.26,145.19,1.8834]
[1740773971629,0.04657639,145.24,145.21,0.04407363]
[1740773972623,0.04657639,145.24,145.21,6.93157363]
[1740773973932,0.04657639,145.24,145.21,0.04407363]
[1740773974635,6.8873,145.22,145.21,0.04407363]
[1740773974838,19.8473,145.22,145.21,0.04407363]
[1740773976033,12.96,145.22,145.21,0.04407363]
[1740773977140,0.04657639,145.24,145.21,0.04407363]
[1740773977936,191.854,145.33,145.21,0.04407363]
[1740773978129,14.8722,145.31,145.16,12.98]
[1740773978739,14.8722,145.31,145.26,6.8851]
[1740773978940,14.8722,145.31,145.21,12.98]
[1740773979142,0.05240917,145.3,145.27,0.04816988]
[1740773979841,0.05240917,145.3,145.27,6.93306988]
[1740773981042,0.05240917,145.3,145.28,6.8844]
[1740773982047,0.05240917,145.3,145.27,0.04816988]
[1740773984747,0.05240917,145.3,145.29,6.884]
[1740773985039,0.05240917,145.3,145.27,0.04816988]
[1740773985442,0.05240917,145.3,145.28,6.8844]
[1740773985648,0.05240917,145.3,145.27,0.04816988]
[1740773986046,0.05240917,145.3,145.27,6.988e-05]
[1740773986242,5.43240917,145.3,145.27,6.988e-05]
[1740773986437,8.87240917,145.3,145.27,6.988e-05]
[1740773986843,6.8844,145.28,145.27,6.988e-05]
[1740773987441,11.48844239,145.28,145.27,6.988e-05]
[1740773988039,10.3244,145.28,145.27,6.988e-05]
[1740773988242,11.48888918,145.28,145.27,6.988e-05]
[1740773988639,10.3244,145.28,145.27,6.988e-05]
[1740773988841,11.48918166,145.28,145.27,6.988e-05]
[1740773989649,10.3244,145.28,145.27,6.988e-05]
[1740773992151,6.8844,145.28,145.27,6.988e-05]
[1740773992951,6.8902,145.16,145.06,90.98042407]
[1740773993146,13.12,145.18,145.13,6.8911]
[1740773993342,13.12,145.19,145.12,3.6546]
[1740773993649,13.12,145.19,145.13,6.8913]
[1740773993850,13.12,145.19,145.12,3.6546]
[1740773994249,0.04811431,145.17,145.14,0.04509386]
[1740773994650,20.0071,145.23,145.14,0.04509386]
[1740773994946,5.38,145.3,145.14,0.04509386]
[1740773994947,5.38,145.3,145.14,13.12]
[1740773995148,13.12,145.27,145.15,1.7752]
[1740773995348,13.12,145.27,145.18,6.8889]
[1740773995551,13.12,145.27,145.19,1.8187]
[1740773995752,6.8871,145.23,145.21,0.04751343]
[1740773996652,6.8873,145.22,145.21,0.04751343]
[1740774001459,19.9673,145.22,145.21,1.343e-05]
[1740774002053,0.04614093,145.24,145.21,1.343e-05]
[1740774002454,6.93274093,145.24,145.21,1.343e-05]
[1740774002655,0.04614093,145.24,145.21,1.343e-05]
[1740774004560,0.04614093,145.24,145.22,6.8873]
[1740774006860,0.04614093,145.24,145.21,1.343e-05]
[1740774007056,0.04614093,145.24,145.21,6.88771343]
[1740774007260,0.04614093,145.24,145.21,1.343e-05]
[1740774009662,14.7815,145.3,145.21,1.343e-05]
[1740774009964,21.6654,145.3,145.25,6.8855]
[1740774010362,6.8841,145.29,145.25,6.8855]
[1740774011065,0.04974316,145.28,145.26,0.0525654]
[1740774011255,233.32,145.32,145.22,13.02]
[1740774011563,0.04760586,145.28,145.27,6.8846]
[1740774011764,227.1827,145.32,145.27,6.8846]
[1740774011969,0.04925542,145.29,145.26,0.04753867]
[1740774012263,0.04925542,145.29,145.27,6.8849]
[1740774012966,0.04925542,145.29,145.26,0.04753867]
[1740774013265,0.04925542,145.29,145.28,6.8844]
[1740774014159,0.04925542,145.29,145.26,0.04753867]
[1740774015465,0.04925542,145.29,145.27,6.8849]
[1740774016066,0.04925542,145.29,145.26,0.04753867]
[1740774016067,0.04925542,145.29,145.28,6.8844]
[1740774016264,0.04925542,145.29,145.26,0.04753867]
[1740774016669,0.04925542,145.29,145.27,6.8845]
[1740774018170,0.04925542,145.29,145.26,0.04753867]
[1740774018573,0.04925542,145.29,145.27,6.8848]
[1740774019369,0.04925542,145.29,145.26,0.04753867]
[1740774019574,0.04925542,145.29,145.28,6.8844]
[1740774020576,0.04925542,145.29,145.27,6.8847]
[1740774021677,0.04925542,145.29,145.28,6.8844]
[1740774023176,220.3,145.32,145.31,6.883]
[1740774023375,6.8818,145.34,145.24,14.953]
[1740774024271,6.8818,145.34,145.3,6.883]
[1740774024576,0.04636824,145.33,145.28,0.0502254]
[1740774026073,0.04636824,145.33,145.32,6.8826]
[1740774027373,0.04636824,145.33,145.31,0.04554963]
[1740774027777,0.04636824,145.33,145.31,6.92844963]
[1740774028275,0.04636824,145.33,145.31,0.04554963]
[1740774029077,6.92876824,145.33,145.31,0.04554963]
[1740774029376,0.04636824,145.33,145.31,0.04554963]
[1740774029677,6.8826,145.32,145.31,0.04554963]
[1740774030276,6.92856824,145.33,145.31,0.04554963]
[1740774030476,0.04636824,145.33,145.31,0.04554963]
[1740774035280,0.04636824,145.33,145.32,6.8826]
[1740774035480,0.04636824,145.33,145.31,0.04554963]
[1740774035680,0.04636824,145.33,145.32,6.8826]
[1740774036181,0.04636824,145.33,145.31,0.04554963]
[1740774037381,0.04636824,145.33,145.32,6.8826]
[1740774039181,0.04636824,145.33,145.31,0.04554963]
[1740774039675,0.04636824,145.33,145.32,6.8826]
[1740774039879,0.04636824,145.33,145.31,0.04554963]
[1740774040075,0.04636824,145.33,145.18,37.94796409]
[1740774040277,3.5761,145.33,145.18,37.94796409]
[1740774040477,6.884,145.3,145.19,5.651]
[1740774040677,3.5761,145.33,145.24,6.8863]
[1740774040877,3.5761,145.33,145.21,13.28]
[1740774041173,1.7389,145.33,145.21,13.28]
[1740774041377,0.04886155,145.28,145.27,6.8847]
[1740774041574,13.12,145.34,145.26,0.05107656]
[1740774042076,13.12,145.34,145.26,13.33107656]
[1740774042277,13.12,145.34,145.29,6.8836]
[1740774042776,0.04631143,145.33,145.3,0.04554005]
[1740774045675,6.883,145.31,145.3,0.04554005]
[1740774050290,6.8846,145.28,145.24,6.8862]
[1740774050883,6.8846,145.28,145.23,10.5176]
[1740774051287,13.2,145.33,145.23,3.631]
[1740774051490,0.05106191,145.27,145.24,1.8272489]
[1740774051688,13.22,145.36,145.24,1.7755]
[1740774051888,6.8822,145.33,145.24,1.7755]
[1740774052686,1.8913,145.37,145.24,1.7755]
[1740774052992,0.04830347,145.3,145.27,0.0500407]
[1740774053189,6.8818,145.34,145.3,6.8834]
[1740774054287,0.04357101,145.33,145.31,0.04539672]
[1740774056192,0.04357101,145.33,145.31,6.92819672]
[1740774056394,0.04357101,145.33,145.31,0.04539672]
[1740774057297,0.04357101,145.33,145.32,6.8826]
[1740774057795,0.04357101,145.33,145.31,0.04539672]
[1740774057995,0.04357101,145.33,145.31,6.92829672]
[1740774058690,0.04357101,145.33,145.32,6.8826]
[1740774060499,0.04357101,145.33,145.31,6.92809672]
[1740774060799,0.04357101,145.33,145.31,0.04539672]
[1740774060997,0.04357101,145.33,145.31,6.92829672]
[1740774062495,0.04357101,145.33,145.31,0.04539672]
[1740774062695,0.04357101,145.33,145.32,6.8826]
[1740774063093,0.04357101,145.33,145.31,6.92819672]
[1740774063804,0.04357101,145.33,145.31,0.04539672]
[1740774064901,0.04357101,145.33,145.31,6.92799672]
[1740774065301,0.04357101,145.33,145.31,0.04539672]
[1740774065703,0.04357101,145.33,145.32,6.8826]
[1740774068703,0.04357101,145.33,145.31,6.92829672]
[1740774069206,0.04357101,145.33,145.31,0.04539672]
[1740774070612,0.04357101,145.33,145.31,6.92819672]
[1740774070813,0.04357101,145.33,145.31,0.04539672]
[1740774071818,0.04357101,145.33,145.32,6.8826]
[1740774073107,0.04357101,145.33,145.31,0.04539672]
[1740774076725,6.92587101,145.33,145.31,0.04539672]
[1740774076918,0.04357101,145.33,145.31,0.04539672]
[1740774078723,6.8826,145.32,145.31,0.04539672]
[1740774080315,0.04357101,145.33,145.22,1.8828]
[1740774080514,3.7086,145.34,145.22,1.8828]
[1740774080917,6.8839,145.3,145.25,6.8857]
[1740774081315,3.7086,145.34,145.22,1.8828]
[1740774081518,0.05076037,145.29,145.26,0.04905391]
[1740774083221,6.8849,145.27,145.26,0.04905391]
[1740774083628,0.05076037,145.29,145.2,39.70296409]
[1740774083827,6.8861,145.25,145.2,46.59116409]
[1740774084532,6.8855,145.26,145.2,39.70296409]
[1740774084731,0.04894832,145.24,145.21,0.04342603]
[1740774084933,13.14,145.3,145.2,39.70296409]
[1740774085134,0.04582621,145.24,145.23,6.8865]
[1740774085537,0.04854793,145.25,145.23,6.8865]
[1740774085834,13.14,145.3,145.2,1.755]
[1740774086035,0.05073471,145.25,145.23,0.04700589]
[1740774086230,13.14,145.3,145.23,0.04700589]
[1740774086433,0.05166811,145.25,145.23,0.04700589]
[1740774086626,13.14,145.3,145.23,0.04700589]
[1740774086833,0.05125583,145.25,145.23,0.04700589]
[1740774087033,220.34,145.29,145.23,0.04700589]
[1740774087331,0.05182579,145.25,145.23,0.04700589]
[1740774090933,6.93772579,145.25,145.23,0.04700589]
[1740774091140,13.21182579,145.25,145.15,3.6073]
[1740774091437,13.16,145.25,145.15,3.6073]
[1740774091638,13.16,145.25,145.16,6.89]
[1740774092134,6.8881,145.21,145.16,6.89]
[1740774092339,0.04780115,145.22,145.19,0.04387323]
[1740774092734,6.8878,145.21,145.19,0.04387323]
[1740774093837,0.04780115,145.22,145.19,0.04387323]
[1740774094336,0.04780115,145.22,145.2,6.8882]
[1740774094939,0.04780115,145.22,145.19,6.93237323]
[1740774095340,0.04780115,145.22,145.19,0.04387323]
[1740774097244,6.93520115,145.22,145.19,0.04387323]
[1740774097445,0.04780115,145.22,145.19,0.04387323]
[1740774097945,6.8882,145.2,145.19,0.04387323]
[1740774100951,0.04780115,145.22,145.19,0.04387323]
[1740774101545,6.93540115,145.22,145.19,0.04387323]
[1740774101741,0.04780115,145.22,145.19,0.04387323]
[1740774103446,0.04780115,145.22,145.2,6.8882]
[1740774104355,0.04780115,145.22,145.19,6.93257323]
[1740774104554,0.04780115,145.22,145.19,0.04387323]
[1740774105555,6.93510115,145.22,145.19,0.04387323]
[1740774107057,6.8878,145.21,145.19,0.04387323]
[1740774107358,0.04780115,145.22,145.19,0.04387323]
[1740774107760,6.8882,145.2,145.19,0.04387323]
[1740774108762,0.04780115,145.22,145.19,0.04387323]
[1740774108955,6.8879,145.21,145.19,0.04387323]
[1740774109156,0.04780115,145.22,145.19,0.04387323]
[1740774109457,6.93540115,145.22,145.19,0.04387323]
[1740774109659,0.04780115,145.22,145.19,0.04387323]
[1740774109959,0.04780115,145.22,145.19,6.93227323]
[1740774110448,0.04780115,145.22,145.19,0.04387323]
[1740774111159,6.8881,145.21,145.19,0.04387323]
[1740774112359,0.04780115,145.22,145.19,0.04387323]
[1740774112559,6.8882,145.2,145.19,0.04387323]
[1740774112754,0.04780115,145.22,145.19,0.04387323]
[1740774113357,6.8882,145.2,145.19,0.04387323]
[1740774114657,1.93180115,145.22,145.12,6.8919]
[1740774114852,1.884,145.22,145.12,6.8919]
[1740774115050,1.884,145.22,145.11,6.8922]
[1740774115355,6.8904,145.16,145.11,6.8922]
[1740774115560,1.884,145.22,145.12,6.8918]
[1740774116056,0.05071603,145.18,145.16,0.04808422]
[1740774116362,6.89,145.17,145.16,0.04808422]
[1740774118164,6.89,145.17,145.16,8.422e-05]
[1740774118858,20.28021603,145.18,145.16,8.422e-05]
[1740774119061,13.39071603,145.18,145.16,8.422e-05]
[1740774119260,0.05071603,145.18,145.16,8.422e-05]
[1740774119858,0.05071603,145.18,145.16,6.88998422]
[1740774120262,0.05071603,145.18,145.16,8.422e-05]
[1740774120461,220.34,145.29,145.16,3.44008422]
[1740774120663,74.32846332,145.31,145.17,3.6581]
[1740774121760,0.04814894,145.25,145.22,0.04889862]
[1740774121958,117.12139031,145.33,145.19,13.26]
[1740774122765,124.00379031,145.33,145.19,13.26]
[1740774122962,117.12139031,145.33,145.19,13.26]
[1740774123163,0.05091397,145.27,145.25,0.05168765]
[1740774123360,115.28549031,145.33,145.28,6.8844]
[1740774123766,115.28549031,145.33,145.19,13.26]
[1740774123967,102.00549031,145.33,145.19,205.26]
[1740774124469,0.04433903,145.27,145.25,0.04631964]
[1740774124670,102.00549031,145.33,145.25,0.04631964]
[1740774124871,0.04544979,145.27,145.25,0.04631964]
[1740774125164,13.26,145.3,145.25,0.04631964]
[1740774125470,20.1436,145.3,145.25,0.04631964]
[1740774125669,0.05256757,145.29,145.25,0.04631964]
[1740774126471,13.26,145.35,145.25,0.04631964]
[1740774126668,13.26,145.35,145.23,1.7443]
[1740774127066,1.7752,145.36,145.24,1.8106]
[1740774127265,15.0352,145.36,145.24,1.8106]
[1740774127670,0.04875064,145.31,145.29,0.04621984]
[1740774127867,15.0352,145.36,145.29,0.04621984]
[1740774128067,0.051047,145.31,145.29,0.04621984]
[1740774128269,15.0352,145.36,145.29,0.04621984]
[1740774128467,0.05031353,145.31,145.29,0.04621984]
[1740774128662,13.32,145.31,145.29,0.04621984]
[1740774128861,13.3717003,145.31,145.19,1.8106]
[1740774129064,1.7752,145.3,145.19,1.8106]
[1740774130073,0.05043825,145.26,145.23,0.04956075]
[1740774130277,6.8875,145.22,145.14,46.62906409]
[1740774130482,15.0845,145.25,145.14,39.73816409]
[1740774130682,15.0845,145.25,145.14,37.94796409]
[1740774130882,6.8887,145.19,145.14,37.94796409]
[1740774131076,13.34,145.19,145.14,37.94796409]
[1740774131477,0.04967292,145.18,145.15,0.0510255]
[1740774136082,6.8899,145.17,145.15,0.0510255]
[1740774136581,0.04967292,145.18,145.15,0.0510255]
[1740774137590,6.8901,145.16,145.15,0.0510255]
[1740774138989,6.8901,145.16,145.1,1.7902]
[1740774138990,6.8916,145.13,145.08,8.7692]
[1740774139584,13.34,145.19,145.1,6.893]
[1740774140288,0.05235786,145.16,145.13,0.05094482]
[1740774140985,6.94295786,145.16,145.13,0.05094482]
[1740774141192,0.05235786,145.16,145.13,0.05094482]
[1740774141992,13.34,145.19,145.13,0.05094482]
[1740774142186,6.8876,145.22,145.13,0.05094482]
[1740774142382,6.8876,145.22,145.16,6.8898]
[1740774143089,13.54,145.23,145.14,1.8996]
[1740774143287,0.04970767,145.2,145.18,6.93676077]
[1740774143492,0.04970767,145.2,145.18,0.04756077]
[1740774144294,233.94,145.27,145.21,6.8877]
[1740774144493,233.94,145.27,145.15,13.54]
[1740774144692,6.8855,145.26,145.15,13.54]
[1740774145194,6.8855,145.26,145.22,6.8869]
[1740774145588,0.05238347,145.25,145.15,13.54]
[1740774145790,220.4,145.27,145.24,6.8863]
[1740774146196,220.44683189,145.27,145.24,6.8863]
[1740774146392,220.44683189,145.27,145.24,0.05016996]
[1740774147392,0.04683189,145.27,145.24,0.05016996]
[1740774148395,6.8859,145.25,145.24,0.05016996]
[1740774150794,20.4459,145.25,145.24,0.05016996]
[1740774150996,6.8878,145.21,145.16,8.7089]
[1740774151392,13.56,145.25,145.16,1.8189]
[1740774151998,13.56,145.25,145.14,1.8996]
[1740774152196,0.04663643,145.22,145.19,0.04514083]
[1740774152595,6.8882,145.2,145.19,0.04514083]
[1740774153501,0.04663643,145.22,145.14,1.8996]
[1740774153800,1.914,145.23,145.12,1.7928]
[1740774154297,1.914,145.23,145.08,1.8629]
[1740774154497,1.914,145.23,145.08,3.6557]
[1740774154699,6.8911,145.15,145.14,0.04494803]
[1740774154889,13.58,145.17,145.09,6.8932]
[1740774155094,0.04837287,145.16,145.13,0.04467501]
[1740774155297,6.8906,145.15,145.13,0.04467501]
[1740774155596,0.04837287,145.16,145.13,0.04467501]
[1740774155991,6.8906,145.15,145.13,0.04467501]
[1740774156198,0.04837287,145.16,145.13,0.04467501]
[1740774156602,6.8909,145.15,145.13,0.04467501]
[1740774159009,220.54,145.14,144.96,9.55999959]
[1740774159201,190.0,145.13,144.96,13.30829959]
[1740774159502,13.58,145.12,144.96,13.30829959]
[1740774160104,0.05170896,145.05,145.03,0.04899637]
[1740774160303,13.6,145.07,144.96,9.55999959]
[1740774160502,0.05021815,145.05,145.03,0.0516394]
[1740774160707,0.05021815,145.05,144.97,1.9102]
[1740774160899,0.05021815,145.05,145.03,0.05077267]
[1740774161095,0.05021815,145.05,145.0,0.04707965]
[1740774163506,6.8971,145.02,145.0,0.04707965]
[1740774164007,6.8973,145.01,145.0,0.04707965]
[1740774164306,13.6,145.07,145.0,0.04707965]
[1740774164708,6.8973,145.01,145.0,7.965e-05]
[1740774164908,20.5773,145.01,145.0,7.965e-05]
[1740774166996,0.04626792,145.02,145.0,7.965e-05]
[1740774172710,0.04626792,145.02,145.01,6.8973]
[1740774173105,0.04626792,145.02,145.0,7.965e-05]
[1740774174210,6.8931,145.1,145.05,6.8953]
[1740774174401,234.66,145.12,145.01,3.7158]
[1740774174809,6.8925,145.11,145.01,3.7158]
[1740774175007,220.72,145.12,145.01,3.7158]
[1740774175510,0.0484027,145.08,145.07,6.8941]
[1740774175906,0.04526449,145.09,145.07,6.8941]
[1740774177004,0.04526449,145.09,145.06,0.05110298]
[1740774177711,0.04526449,145.09,145.06,6.94570298]
[1740774178315,0.04526449,145.09,145.07,6.8942]
[1740774178508,0.04526449,145.09,145.06,0.05110298]
[1740774178909,0.04526449,145.09,145.06,6.94580298]
[1740774179913,0.04526449,145.09,145.07,6.8943]
[1740774180113,0.04526449,145.09,145.06,0.05110298]
[1740774181306,6.8939,145.08,145.06,0.05110298]
[1740774182010,13.98526449,145.09,145.06,0.05110298]
[1740774182312,0.04526449,145.09,145.07,6.8941]
[1740774184314,0.04526449,145.09,145.06,0.05110298]
[1740774184915,222.4743,145.19,145.06,0.05110298]
[1740774185216,13.9,145.18,145.02,15.7946]
[1740774185404,6.8903,145.16,145.02,15.7946]
[1740774185606,6.8903,145.16,145.12,6.8917]
[1740774185815,13.9,145.18,145.12,6.8917]
[1740774186014,6.8911,145.14,145.1,6.8928]
[1740774186215,6.8911,145.14,145.12,0.04401181]
[1740774187116,0.93368499,145.15,145.12,0.04401181]
[1740774189514,0.93368499,145.15,145.04,1.8648]
[1740774189716,6.8922,145.12,145.07,6.8943]
[1740774189912,0.88320066,145.15,145.04,1.8648]
[1740774190118,0.88320066,145.15,145.05,1.9083]
[1740774190816,0.05059623,145.11,145.09,0.04392192]
[1740774191117,0.05059623,145.11,145.1,6.893]
[1740774191511,0.05059623,145.11,145.09,0.04392192]
[1740774192718,6.94339623,145.11,145.09,0.04392192]
[1740774192920,0.05059623,145.11,145.09,0.04392192]
[1740774194222,0.05059623,145.11,145.01,3.5671]
[1740774194422,13.92,145.13,145.01,3.5671]
[1740774194925,6.8933,145.1,145.01,3.5671]
[1740774195322,6.8927,145.11,145.05,6.895]
[1740774195521,0.04381253,145.07,145.04,0.05245643]
[1740774195725,6.8924,145.12,145.01,3.5671]
[1740774196024,0.04724583,145.07,145.06,6.8949]
[1740774196226,13.92,145.13,145.06,6.8949]
[1740774196725,0.04504839,145.11,145.08,0.04817591]
[1740774198026,6.93764839,145.11,145.08,0.04817591]
[1740774198923,0.04504839,145.11,145.08,0.04817591]
[1740774199524,0.04504839,145.11,145.08,6.94197591]
[1740774201329,0.04504839,145.11,145.1,6.893]
[1740774204633,0.04504839,145.11,145.09,8.7514]
[1740774204835,0.04504839,145.11,145.09,1.8581]
[1740774205030,0.04504839,145.11,145.08,0.04817591]
[1740774205835,0.04504839,145.11,145.1,6.893]
[1740774207036,0.04504839,145.11,145.08,0.04817591]
[1740774207232,0.04504839,145.11,145.08,6.94187591]
[1740774207932,0.04504839,145.11,145.08,0.04817591]
[1740774208132,6.93764839,145.11,145.08,0.04817591]
[1740774208534,0.04504839,145.11,145.08,0.04817591]
[1740774209137,6.8934,145.1,145.08,0.04817591]
[1740774209335,0.04504839,145.11,145.08,0.04817591]
[1740774211435,6.893,145.1,145.08,0.04817591]
[1740774211636,0.04504839,145.11,145.08,0.04817591]
[1740774211936,6.93774839,145.11,145.08,0.04817591]
[1740774213434,6.93774839,145.11,144.97,76.09660116]
[1740774213435,13.82,145.1,144.97,76.09660116]
[1740774213639,13.82,145.1,145.0,3.7967]
[1740774213839,6.8923,145.12,145.0,17.6167]
[1740774214042,13.82,145.13,145.06,6.8949]
[1740774214239,13.82,145.13,145.0,17.6167]
[1740774214542,0.04458675,145.08,145.05,0.02968769]
[1740774216243,0.04458675,145.08,145.05,6.92498769]
[1740774218544,0.04458675,145.08,145.06,6.8948]
[1740774220443,0.04458675,145.08,145.07,6.8944]
[1740774226643,221.54320066,145.15,145.1,6.8928]
[1740774226949,221.54320066,145.15,145.06,3.7957]
[1740774227148,221.54320066,145.15,145.11,6.8925]
[1740774227745,0.04372073,145.14,145.12,0.04633122]
[1740774228745,0.04372073,145.14,145.13,6.8916]
[1740774228946,74.480858,145.24,145.12,0.04633122]
[1740774229146,41.65032175,145.23,145.1,13.72]
[1740774229347,6.8879,145.21,145.16,6.8897]
[1740774229948,6.8879,145.21,145.17,6.8895]
[1740774230253,0.05000796,145.2,145.17,6.94211212]
[1740774233957,0.05000796,145.2,145.17,0.05261212]
[1740774234862,6.93860796,145.2,145.17,0.05261212]
[1740774235351,0.05000796,145.2,145.17,0.05261212]
[1740774235656,6.8887,145.19,145.17,0.05261212]
[1740774236963,0.05000796,145.2,145.17,0.05261212]
[1740774237157,0.05000796,145.2,145.06,3.7957]
[1740774237359,13.72,145.23,145.06,3.7957]
[1740774237761,6.8921,145.12,145.07,6.8941]
[1740774238350,6.8921,145.12,145.08,0.05035411]
[1740774238351,0.04864107,145.11,145.08,0.05035411]
[1740774238959,6.8935,145.1,145.08,0.05035411]
[1740774239258,0.04864107,145.11,145.08,0.05035411]
[1740774239756,6.8935,145.09,145.08,0.05035411]
[1740774241660,6.8935,145.09,145.01,3.5872]
[1740774241661,6.8953,145.06,145.01,3.5872]
[1740774242264,6.8945,145.07,145.01,3.5872]
[1740774242458,13.68,145.09,145.01,3.5872]
[1740774242659,13.68,145.09,145.03,6.896]
[1740774242859,0.05139605,145.06,145.03,6.896]
[1740774243062,0.05139605,145.06,145.01,3.5872]
[1740774243765,0.05139605,145.06,145.04,6.8955]
[1740774243965,0.05139605,145.06,145.02,1.8181]
[1740774245165,0.05139605,145.06,145.01,3.5872]
[1740774246164,0.05139605,145.06,145.02,6.8966]
[1740774246659,0.05139605,145.06,144.97,3.6884]
[1740774246867,13.68,145.09,144.97,3.6884]
[1740774247066,0.04430065,145.03,144.97,3.6884]
[1740774247360,13.68,145.09,145.06,6.8947]
[1740774247766,20.5326,145.11,145.07,6.8944]
[1740774248268,20.5326,145.11,145.01,13.64]
[1740774248269,0.05182087,145.1,145.08,0.04589274]
[1740774248468,234.24,145.15,145.02,1.9101]
[1740774248670,0.04911316,145.1,145.08,0.05118102]
[1740774248872,220.6,145.15,145.08,0.05118102]
[1740774249361,0.04960662,145.13,145.08,0.05118102]
[1740774250168,0.04960662,145.13,145.12,6.892]
[1740774251369,0.04960662,145.13,145.11,0.04734437]
[1740774253273,0.04960662,145.13,145.12,6.892]
[1740774253473,0.04960662,145.13,145.11,0.04734437]
[1740774254273,0.04960662,145.13,145.11,6.93954437]
[1740774254475,0.04960662,145.13,145.11,0.04734437]
[1740774254874,6.892,145.12,145.11,0.04734437]
[1740774256477,6.8935,145.09,145.04,1.8822]
[1740774256781,13.66,145.09,145.0,8.801]
[1740774257375,13.66,145.09,145.0,1.9033]
[1740774257571,13.66,145.09,144.98,41.74620057]
[1740774257778,0.04375097,145.06,144.98,43.55550057]
[1740774258580,0.04375097,145.06,145.0,6.8977]
[1740774259581,0.04375097,145.06,145.01,6.8973]
[1740774260571,0.04375097,145.06,144.98,5.5072]
[1740774261078,0.04375097,145.06,145.03,6.8962]
[1740774261279,0.04375097,145.06,144.98,5.5072]
[1740774261682,0.04375097,145.06,145.03,6.896]
[1740774262180,0.04375097,145.06,144.98,5.5072]
[1740774262480,0.04375097,145.06,145.04,6.8958]
[1740774263076,0.04375097,145.06,145.03,6.8962]
[1740774263981,0.04375097,145.06,145.01,6.8969]
[1740774264383,0.04375097,145.06,144.98,5.5072]
[1740774264981,0.04375097,145.06,145.0,6.8974]
[1740774265283,0.04375097,145.06,144.98,5.5072]
[1740774265482,0.04375097,145.06,144.98,12.4057]
[1740774266482,0.04375097,145.06,144.98,5.5072]
[1740774267186,0.04375097,145.06,145.01,6.8969]
[1740774269184,0.04375097,145.06,145.03,6.8959]
[1740774269592,0.04375097,145.06,144.98,19.1472]
[1740774269890,0.04375097,145.06,144.98,5.5072]
[1740774270386,6.896,145.04,144.98,12.4057]
[1740774270688,1.7897,145.08,144.98,12.4057]
[1740774270886,0.04501257,145.02,144.98,12.4057]
[1740774272589,0.04501257,145.02,144.98,5.5072]
[1740774273889,0.04501257,145.02,144.98,12.4058]
[1740774274086,6.94181257,145.02,144.98,12.4058]
[1740774277491,0.04501257,145.02,144.98,12.4058]
[1740774277688,0.04501257,145.02,144.99,6.8982]
[1740774277985,0.04501257,145.02,144.98,5.5072]
[1740774277986,236.3337,145.12,144.98,5.5072]
[1740774278193,238.0674,145.12,144.98,19.0672]
[1740774278494,13.56,145.11,144.98,19.0672]
[1740774278889,6.8946,145.07,145.03,6.896]
[1740774279195,0.04419935,145.06,145.04,0.04846085]
[1740774279594,0.04419935,145.06,145.04,6.94426085]
[1740774281390,0.04419935,145.06,145.05,6.8954]
[1740774281597,0.04419935,145.06,145.05,8.7858]
[1740774281796,6.8931,145.1,145.06,6.8945]
[1740774281991,220.64,145.12,145.05,1.8904]
[1740774282487,227.5324,145.12,145.07,6.8941]
[1740774282695,227.5324,145.12,145.05,1.8904]
[1740774282896,0.0501664,145.11,145.08,6.94235036]
[1740774284000,0.0501664,145.11,145.08,0.04845036]
[1740774284198,0.0501664,145.11,145.09,6.8934]